bitfinex/quotes_ETHUSD_20260203
["timestamp","ask_amount","ask_price","bid_price","bid_amount"]
[1770126787428,0.93112497,2308.7,2307.9,11.06719861]
[1770126787755,4.33135004,2308.8,2307.9,11.06719861]
[1770126787756,4.33135004,2308.8,2308.0,1.54134846]
[1770126787950,0.93108482,2308.7,2308.0,1.54134846]
[1770126788150,4.33135004,2308.8,2308.0,1.54134846]
[1770126788358,0.93074739,2308.7,2308.0,1.54134846]
[1770126788558,4.33135004,2308.8,2308.0,1.54134846]
[1770126788761,0.93112381,2308.7,2308.0,1.54134846]
[1770126789063,1.08284661,2308.8,2308.0,11.69965271]
[1770126789437,0.93117973,2308.7,2308.0,1.54134846]
[1770126789750,9.97133065,2308.8,2307.9,1.99204562]
[1770126789944,0.93117285,2308.7,2308.0,1.08318816]
[1770126790146,9.97133065,2308.8,2308.0,1.08318816]
[1770126790358,0.93132323,2308.7,2308.0,1.08318816]
[1770126790528,9.97133065,2308.8,2308.0,1.08318816]
[1770126790728,0.93149789,2308.7,2308.0,1.08318816]
[1770126790929,9.97133065,2308.8,2308.0,1.08318816]
[1770126791130,0.93149931,2308.7,2308.0,1.08318816]
[1770126791334,9.97133065,2308.8,2308.0,1.08318816]
[1770126791638,0.93131444,2308.7,2308.0,1.08318816]
[1770126791838,9.97133065,2308.8,2308.0,1.08318816]
[1770126792163,0.9313255,2308.7,2308.0,1.08318816]
[1770126792365,9.97133065,2308.8,2308.0,1.08318816]
[1770126792659,0.93109214,2308.7,2308.0,1.08318816]
[1770126792840,9.97133065,2308.8,2308.0,1.08318816]
[1770126795352,9.97133065,2308.8,2308.0,10.15834518]
[1770126795871,8.88848404,2308.6,2307.4,9.0619676]
[1770126796039,0.0011,2308.9,2308.6,0.01318942]
[1770126796239,0.29881845,2309.0,2308.8,0.01318942]
[1770126796468,0.29881845,2309.0,2308.7,0.01318942]
[1770126796469,1.38153824,2309.0,2308.5,0.01318942]
[1770126796650,1.38153824,2309.0,2308.6,0.01318942]
[1770126798870,0.0011,2308.8,2308.6,0.01318942]
[1770126799068,0.0011,2308.8,2308.3,0.01318942]
[1770126799367,0.0011,2308.8,2308.5,0.01318942]
[1770126800057,8.88958404,2308.8,2308.3,0.01318942]
[1770126800771,8.88958404,2308.8,2308.1,0.01418942]
[1770126800938,8.88958404,2308.8,2308.3,0.01318942]
[1770126801144,1.08286048,2308.7,2308.3,0.01318942]
[1770126801338,1.08286048,2308.7,2308.2,0.01318942]
[1770126801540,10.05738136,2308.7,2308.1,0.01418942]
[1770126801755,1.08395109,2308.8,2308.4,0.01318942]
[1770126801953,0.0011,2308.8,2308.6,0.01318942]
[1770126802151,1.08391739,2308.8,2308.6,0.01318942]
[1770126803075,0.0011,2308.8,2308.6,0.01318942]
[1770126803270,0.0011,2308.8,2308.4,0.01318942]
[1770126803456,0.0011,2308.8,2308.5,0.01318942]
[1770126804171,0.57246239,2308.8,2308.3,0.01318942]
[1770126804376,0.57246239,2308.8,2308.4,0.01318942]
[1770126805257,0.57246239,2308.8,2308.5,0.01318942]
[1770126806771,1.65531544,2308.8,2308.5,0.01318942]
[1770126806951,1.65531544,2308.8,2308.4,0.01318942]
[1770126807552,1.65531544,2308.8,2308.5,0.01318942]
[1770126809250,1.08395305,2308.8,2308.5,0.01318942]
[1770126809485,9.90821564,2308.7,2308.2,0.01318942]
[1770126809787,0.9337072,2308.6,2308.2,0.01318942]
[1770126809971,1.08395305,2308.8,2308.3,0.01318942]
[1770126810285,0.93370467,2308.7,2308.4,0.01318942]
[1770126810467,0.93375925,2308.6,2308.3,0.01318942]
[1770126810670,1.08395305,2308.8,2308.3,0.01318942]
[1770126810857,0.93375812,2308.7,2308.3,0.01318942]
[1770126811057,0.93375812,2308.6,2308.3,0.01318942]
[1770126811383,1.08289618,2308.7,2308.3,0.01318942]
[1770126812185,4.33242038,2308.8,2308.6,0.01318942]
[1770126812186,1.08394816,2308.8,2308.6,0.01318942]
[1770126812505,5.88755561,2309.2,2308.6,0.01318942]
[1770126812506,0.0011,2309.3,2308.9,8.49654401]
[1770126812656,1.55973723,2309.5,2308.9,8.49654401]
[1770126812657,1.08518773,2309.5,2309.0,0.86416276]
[1770126812964,0.93386428,2309.4,2309.0,0.86416276]
[1770126813162,0.0027,2309.5,2309.0,0.85097334]
[1770126813363,9.9081667,2309.4,2308.5,1.08293545]
[1770126813575,10.8161667,2309.3,2308.4,0.001]
[1770126813775,0.93364582,2309.2,2308.4,0.001]
[1770126814088,9.9081667,2309.2,2308.4,0.001]
[1770126814296,0.93474582,2309.1,2308.4,0.001]
[1770126814499,0.93364582,2309.0,2308.4,0.001]
[1770126815104,0.93364582,2308.9,2308.4,0.001]
[1770126815309,1.08281358,2308.8,2308.4,0.001]
[1770126815602,0.93364582,2308.7,2308.4,0.001]
[1770126816271,0.93474582,2308.7,2308.4,0.001]
[1770126816471,0.93494723,2308.6,2308.4,0.001]
[1770126816673,0.6359734,2308.7,2308.4,0.001]
[1770126816874,0.93494115,2308.6,2308.4,0.001]
[1770126817073,0.6359734,2308.7,2308.4,0.001]
[1770126817301,0.93500026,2308.6,2308.4,0.001]
[1770126817502,1.08290738,2308.6,2308.4,0.001]
[1770126817696,1.08400738,2308.6,2308.4,0.001]
[1770126818316,0.0011,2308.6,2308.4,0.001]
[1770126818808,1.082802,2308.9,2308.4,0.001]
[1770126819102,0.93500852,2308.8,2308.4,0.001]
[1770126819277,0.93500852,2308.7,2308.4,0.001]
[1770126819480,1.082802,2308.9,2308.4,0.001]
[1770126819680,0.93503504,2308.8,2308.4,0.001]
[1770126820003,0.93503504,2308.7,2308.4,0.001]
[1770126820192,0.93512632,2308.6,2308.4,0.001]
[1770126820378,11.22220923,2308.9,2308.4,0.001]
[1770126820379,9.63239199,2308.8,2308.4,0.001]
[1770126820578,0.93516421,2308.7,2308.4,0.001]
[1770126820777,0.93516421,2308.6,2308.4,0.001]
[1770126820977,0.65787111,2308.8,2308.4,0.001]
[1770126821208,1.22564915,2308.7,2308.4,0.001]
[1770126821424,0.9350932,2308.6,2308.4,0.001]
[1770126821784,2.01804067,2308.6,2308.4,0.001]
[1770126822106,1.08294747,2308.6,2308.4,0.001]
[1770126822294,0.29055595,2308.7,2308.4,0.001]
[1770126822499,0.93526577,2308.6,2308.4,0.001]
[1770126822693,1.37344712,2308.7,2308.4,0.001]
[1770126822898,0.93527559,2308.6,2308.4,0.001]
[1770126823100,1.37344712,2308.7,2308.4,0.001]
[1770126823297,0.93534883,2308.6,2308.4,0.001]
[1770126823485,1.37344712,2308.7,2308.4,0.001]
[1770126823687,0.93536972,2308.6,2308.4,0.001]
[1770126823887,1.37344712,2308.7,2308.4,0.001]
[1770126824213,0.93536966,2308.6,2308.4,0.001]
[1770126824416,0.93536966,2308.5,2308.4,0.001]
[1770126824719,1.37344712,2308.7,2308.4,0.001]
[1770126824914,0.93539644,2308.6,2308.4,0.001]
[1770126825108,1.37344712,2308.7,2308.4,0.001]
[1770126825317,0.9354639,2308.6,2308.4,0.001]
[1770126825500,1.08289117,2308.7,2308.4,0.001]
[1770126825696,0.93546393,2308.6,2308.4,0.001]
[1770126825898,1.08289117,2308.7,2308.4,0.001]
[1770126826103,0.93546395,2308.6,2308.4,0.001]
[1770126826301,0.93546395,2308.6,2308.1,0.001]
[1770126826302,0.93545863,2308.5,2308.1,0.001]
[1770126826500,0.93545863,2308.4,2308.1,0.001]
[1770126826724,11.2222984,2308.7,2308.1,0.001]
[1770126826900,0.93549478,2308.6,2308.1,0.001]
[1770126827108,0.93549478,2308.5,2308.1,0.001]
[1770126827423,0.93549478,2308.4,2308.1,0.001]
[1770126827626,1.16488635,2309.0,2308.2,8.49654401]
[1770126827791,2.24761642,2309.0,2308.2,8.49654401]
[1770126827996,2.24761642,2309.0,2308.3,9.56640272]
[1770126828321,2.24761642,2309.0,2308.4,0.75450888]
[1770126829527,1.08273007,2309.0,2308.4,0.75450888]
[1770126831533,5.4967026,2309.1,2308.4,1.83750237]
[1770126831534,2.24869553,2309.1,2308.4,1.83750237]
[1770126832436,0.0011,2309.1,2308.4,10.33503546]
[1770126833717,0.0011,2309.1,2308.6,10.07878269]
[1770126833915,0.0011,2309.1,2308.7,1.44236017]
[1770126837221,0.0011,2309.1,2308.7,2.52519851]
[1770126837415,0.0011,2309.3,2308.7,11.52107382]
[1770126837639,0.0011,2309.3,2308.8,8.99587531]
[1770126839539,0.93407073,2309.2,2308.8,10.07868177]
[1770126839840,0.0011,2309.3,2308.9,1.15210419]
[1770126840343,1.08368189,2309.3,2308.9,1.15210419]
[1770126840544,0.0011,2309.3,2308.9,1.15210419]
[1770126840715,0.0011,2309.1,2308.9,1.15210419]
[1770126842552,0.0011,2309.3,2309.0,10.0785951]
[1770126842853,1.16488635,2310.1,2309.3,8.99587531]
[1770126843053,0.0011,2310.4,2309.8,8.99587531]
[1770126843857,9.48977145,2310.3,2309.2,8.99587531]
[1770126844060,8.55746636,2310.1,2309.3,1.01189452]
[1770126844356,8.55746636,2310.1,2309.1,1.12306993]
[1770126844524,1.08225108,2310.0,2309.2,1.08262601]
[1770126844925,9.63971744,2310.0,2309.2,1.08262601]
[1770126845126,9.63971744,2310.0,2309.1,2.20570944]
[1770126845339,9.63971744,2310.0,2309.1,1.08263951]
[1770126845625,0.93145067,2309.9,2308.6,8.99687531]
[1770126845843,0.93145067,2309.9,2308.7,1.08282946]
[1770126845844,8.55746636,2309.8,2308.7,1.08282946]
[1770126846056,8.55746636,2309.6,2308.6,0.001]
[1770126846228,9.48891703,2309.5,2308.6,0.001]
[1770126846556,1.08262601,2309.2,2308.6,0.001]
[1770126846725,9.64009237,2309.2,2308.6,0.001]
[1770126847354,0.93190987,2309.1,2308.6,0.001]
[1770126847560,0.93190987,2309.1,2308.4,0.001]
[1770126847561,9.48937623,2309.0,2308.4,0.001]
[1770126847858,8.55746636,2309.0,2308.4,0.001]
[1770126850547,9.64023304,2308.9,2308.4,0.001]
[1770126851064,1.08276668,2308.9,2308.4,0.001]
[1770126851856,9.64023304,2308.9,2308.4,0.001]
[1770126853285,1.08276668,2308.9,2308.4,0.001]
[1770126853579,2.32887795,2309.6,2308.5,8.99587531]
[1770126853779,0.01428942,2310.4,2308.5,8.99587531]
[1770126853780,0.0011,2311.2,2310.8,0.01318942]
[1770126853992,5.77518885,2311.4,2311.3,0.01318942]
[1770126854159,8.87697334,2312.0,2311.7,0.01318942]
[1770126854360,0.908,2312.2,2312.1,6.00232502]
[1770126854593,0.908,2312.2,2312.0,0.01318942]
[1770126854594,1.98922134,2312.2,2312.0,0.01318942]
[1770126854887,0.908,2312.2,2311.9,0.01318942]
[1770126855051,0.908,2312.2,2312.0,0.01318942]
[1770126855483,0.908,2312.2,2311.9,0.01318942]
[1770126855682,0.908,2312.2,2312.0,5.952326]
[1770126856193,0.908,2312.2,2310.9,1.15660331]
[1770126856194,10.54669843,2312.2,2310.9,1.15660331]
[1770126856367,8.55746636,2311.8,2310.8,1.09504255]
[1770126856569,8.55746636,2311.8,2310.9,0.01318942]
[1770126857052,1.0814552,2311.7,2310.9,0.01318942]
[1770126857450,9.63892156,2311.7,2310.7,1.09508584]
[1770126857669,9.63892156,2311.7,2310.6,1.08196692]
[1770126857885,0.22520731,2313.3,2311.5,8.6471629]
[1770126858085,4.33495731,2313.9,2311.4,7.59277249]
[1770126858086,1e-08,2313.4,2313.2,0.01318942]
[1770126858301,5.19715095,2315.3,2313.2,0.01318942]
[1770126858302,8.55746636,2314.3,2313.3,0.01318942]
[1770126858585,0.908,2314.2,2314.0,0.01318942]
[1770126858794,0.908,2314.1,2314.0,0.01318942]
[1770126858996,0.908,2314.1,2313.9,0.01318942]
[1770126859202,1.08010023,2314.6,2314.0,0.01318942]
[1770126859357,0.908,2314.5,2314.0,0.01318942]
[1770126860082,0.908,2314.5,2313.6,0.01318942]
[1770126860385,0.908,2314.5,2313.7,0.01318942]
[1770126860564,9.31797533,2314.4,2313.3,0.01318942]
[1770126860765,9.31797533,2314.4,2313.2,0.01318942]
[1770126860974,9.21557533,2314.2,2313.2,0.01318942]
[1770126861386,9.21557533,2314.2,2312.9,0.01318942]
[1770126861387,10.29590893,2314.1,2312.9,0.01318942]
[1770126861559,10.29590893,2314.1,2313.1,0.01318942]
[1770126861981,10.29590893,2314.1,2312.9,0.01318942]
[1770126862177,10.29590893,2314.1,2313.0,0.01318942]
[1770126862378,9.21557533,2314.0,2313.0,0.01318942]
[1770126862689,0.1024,2313.9,2312.6,4.86396713]
[1770126863394,0.1024,2313.9,2312.6,3.78296146]
[1770126863395,10.296049,2313.8,2312.6,3.78296146]
[1770126863701,0.907,2313.7,2312.6,3.78296146]
[1770126864110,10.12257533,2313.7,2312.6,3.78296146]
[1770126864583,9.21557533,2313.7,2312.6,3.78296146]
[1770126864777,0.907,2313.6,2312.6,3.78296146]
[1770126865367,1.08061378,2313.5,2312.6,3.78296146]
[1770126865572,10.29618911,2313.5,2312.6,3.78296146]
[1770126866983,10.30937853,2313.5,2312.6,3.78296146]
[1770126867204,10.29618911,2313.5,2312.2,1.08121828]
[1770126867407,10.29618911,2313.5,2312.8,0.001]
[1770126868004,10.30937853,2313.5,2311.8,1.08140842]
[1770126868158,10.30937853,2313.5,2311.1,4.34009267]
[1770126868159,9.22876475,2313.1,2311.2,8.88847771]
[1770126868367,9.22876475,2312.9,2311.5,1.08152525]
[1770126868578,10.13576475,2312.8,2311.6,0.001]
[1770126869483,0.1024,2312.5,2311.6,0.001]
[1770126872068,1.08112783,2312.4,2311.6,0.001]
[1770126872589,0.907,2312.3,2311.6,0.001]
[1770126873466,0.907,2312.3,2311.1,0.04326943]
[1770126873664,0.907,2312.3,2311.1,0.58982151]
[1770126874387,1.08122134,2312.2,2311.1,0.58982151]
[1770126874567,1.08122134,2312.2,2311.1,1.08170069]
[1770126876969,10.29679667,2312.2,2311.0,4.32699537]
[1770126877164,10.29679667,2312.2,2311.0,1.08178277]
[1770126879373,1.08122134,2312.2,2311.0,8.88847771]
[1770126879577,0.63131067,2312.1,2311.1,1.32157206]
[1770126879778,0.907,2312.0,2311.1,1.32157206]
[1770126880300,0.907,2312.0,2311.2,0.001]
[1770126880500,0.9081,2312.0,2311.2,0.001]
[1770126881200,1.08136165,2311.9,2311.2,1.08268916]
[1770126881380,1.62376418,2311.9,2311.2,1.08268916]
[1770126882305,1.62376418,2311.9,2311.3,0.91856491]
[1770126882503,1.62376418,2311.9,2311.2,1.08268916]
[1770126883305,1.62376418,2311.9,2311.3,0.9217214]
[1770126883613,1.62376418,2311.9,2311.4,0.9217214]
[1770126883906,1.62376418,2311.9,2311.2,1.08268916]
[1770126884076,1.62376418,2311.9,2311.3,0.92175763]
[1770126884277,1.62376418,2311.9,2311.4,0.92175763]
[1770126884501,0.63131067,2311.8,2311.2,0.001]
[1770126884702,0.63131067,2311.8,2311.0,0.001]
[1770126884703,9.846886,2311.8,2311.0,0.001]
[1770126885274,10.29703053,2311.7,2311.0,0.001]
[1770126891384,1.0094,2311.6,2310.5,1.08197892]
[1770126891597,1.0094,2311.6,2310.6,0.92407799]
[1770126891805,0.54240253,2311.5,2310.5,1.08197892]
[1770126891995,0.54240253,2311.5,2310.6,0.92401254]
[1770126892193,0.54240253,2311.5,2310.7,0.92445119]
[1770126892401,1.08159556,2311.4,2310.5,1.08197892]
[1770126892712,1.08159556,2311.4,2310.6,0.92459657]
[1770126892896,1.08159556,2311.4,2310.5,1.08197892]
[1770126892897,0.59503804,2311.3,2310.7,0.92459657]
[1770126893082,0.59503804,2311.3,2310.5,1.08197892]
[1770126893282,0.59503804,2311.3,2311.2,0.001]
[1770126893504,0.59503804,2311.3,2311.0,0.001]
[1770126893696,0.59503804,2311.3,2310.4,11.10472026]
[1770126893881,0.59503804,2311.3,2310.5,0.92522391]
[1770126894203,0.907,2311.2,2310.6,0.92522391]
[1770126894392,1.08173596,2311.1,2310.7,0.92522391]
[1770126894589,1.08173596,2311.1,2310.4,10.58600182]
[1770126894907,1.08173596,2311.1,2310.5,0.92545178]
[1770126895073,1.66041112,2311.1,2310.6,0.92545178]
[1770126895278,1.66041112,2311.1,2310.4,8.88847771]
[1770126895495,1.66041112,2311.1,2310.5,0.9257713]
[1770126895691,1.66041112,2311.1,2310.6,0.9257713]
[1770126895895,1.66041112,2311.1,2310.4,10.02269084]
[1770126896104,1.66041112,2311.1,2310.5,0.92577058]
[1770126896435,1.66041112,2311.1,2310.6,0.92577058]
[1770126896586,1.66041112,2311.1,2310.7,0.92577058]
[1770126896787,1.66041112,2311.1,2310.5,1.08201219]
[1770126896988,1.66041112,2311.1,2310.6,0.9261522]
[1770126897189,1.66041112,2311.1,2310.7,0.9261522]
[1770126897389,1.66041112,2311.1,2310.4,11.10471973]
[1770126897699,1.66041112,2311.1,2310.5,0.92668573]
[1770126897912,1.66041112,2311.1,2310.6,0.92668573]
[1770126898088,1.66041112,2311.1,2310.7,0.92668573]
[1770126898290,1.66041112,2311.1,2310.5,1.13421313]
[1770126898491,1.66041112,2311.1,2310.6,0.92708264]
[1770126898704,1.66041112,2311.1,2310.7,0.92708264]
[1770126898993,1.66041112,2311.1,2310.8,0.92708264]
[1770126899189,1.66041112,2311.1,2310.5,1.13421313]
[1770126899391,1.66041112,2311.1,2310.6,0.92714229]
[1770126899611,1.66041112,2311.1,2310.7,0.92714229]
[1770126899808,1.66041112,2311.1,2310.5,12.01892071]
[1770126900002,1.66041112,2311.1,2310.6,0.92715783]
[1770126900202,1.66041112,2311.1,2310.7,0.92715783]
[1770126900414,1.66041112,2311.1,2310.5,12.01892071]
[1770126900620,1.66041112,2311.1,2310.6,0.92709922]
[1770126900922,1.66041112,2311.1,2310.7,0.92709922]
[1770126901127,1.66041112,2311.1,2310.5,12.01892071]
[1770126901430,1.66041112,2311.1,2310.6,0.92704089]
[1770126901623,1.66041112,2311.1,2310.7,0.92704089]
[1770126901822,1.66041112,2311.1,2310.5,12.01892071]
[1770126902129,1.66041112,2311.1,2310.6,0.92707555]
[1770126902333,1.66041112,2311.1,2310.7,0.92707555]
[1770126902528,1.66041112,2311.1,2310.5,12.01892071]
[1770126902825,1.08173596,2311.1,2310.6,11.81184431]
[1770126903015,0.907,2311.0,2310.7,0.92713673]
[1770126903334,0.907,2311.0,2310.6,10.88470758]
[1770126903684,0.907,2311.4,2310.9,12.01892071]
[1770126903944,0.907,2311.4,2311.0,0.92719762]
[1770126904147,0.907,2311.4,2311.1,0.92719762]
[1770126904342,0.907,2311.4,2310.9,12.01892071]
[1770126904541,10.99921359,2311.9,2310.9,12.01892071]
[1770126904542,1.08139491,2311.9,2311.0,12.9457595]
[1770126904845,1.98850908,2311.6,2311.1,0.92683879]
[1770126905044,1.98850908,2311.6,2311.2,0.92683879]
[1770126905233,1.98850908,2311.6,2311.3,0.92683879]
[1770126905422,1.98850908,2311.6,2311.0,2.21597303]
[1770126905619,0.0011,2311.2,2311.1,0.92672373]
[1770126907651,0.0011,2311.2,2311.1,2.00845969]
[1770126907838,0.907,2311.9,2311.2,10.88470758]
[1770126908040,0.907,2311.9,2311.3,11.81143131]
[1770126908347,0.907,2311.9,2311.4,0.92672373]
[1770126908519,0.907,2311.9,2311.5,0.92672373]
[1770126908720,0.907,2311.9,2311.3,13.42165875]
[1770126908920,0.907,2311.9,2311.4,0.92604013]
[1770126909224,0.907,2311.9,2311.5,11.81074771]
[1770126909424,0.907,2311.9,2311.6,0.92604013]
[1770126909730,0.907,2311.9,2311.1,1.08173596]
[1770126909731,0.907,2311.9,2311.3,1.13421313]
[1770126909942,0.907,2311.9,2311.4,0.92583573]
[1770126910126,0.907,2311.9,2311.5,0.92583573]
[1770126910338,0.907,2311.9,2311.6,0.92575332]
[1770126910656,0.907,2311.9,2311.4,1.08158282]
[1770126910862,0.907,2311.9,2311.5,0.92575559]
[1770126911153,0.907,2311.9,2311.6,0.92575559]
[1770126911361,0.907,2311.9,2311.4,1.890032]
[1770126911540,0.907,2311.9,2311.5,0.92568827]
[1770126911737,1.08241628,2312.0,2311.6,0.92568827]
[1770126911942,0.907,2311.9,2311.4,1.890032]
[1770126912158,0.907,2311.9,2311.5,0.9256875]
[1770126912353,0.907,2311.9,2311.4,1.890032]
[1770126912552,0.907,2311.9,2311.5,0.92559943]
[1770126912754,0.907,2311.9,2311.6,0.92559943]
[1770126912949,0.907,2311.9,2311.4,0.80844918]
[1770126913155,0.907,2311.9,2311.5,0.92563902]
[1770126913344,0.907,2311.9,2311.3,1.08161091]
[1770126913544,0.907,2311.9,2311.4,0.92559901]
[1770126913753,0.907,2311.9,2311.5,0.92559901]
[1770126913945,0.907,2311.9,2311.4,1.82840066]
[1770126914144,0.907,2311.9,2311.5,0.92544754]
[1770126914347,0.907,2311.9,2311.4,1.82840066]
[1770126914546,0.907,2311.9,2311.5,0.92507971]
[1770126914746,0.907,2311.9,2311.4,1.82840066]
[1770126914947,0.907,2311.9,2311.5,0.9249986]
[1770126915268,0.907,2311.9,2311.4,1.82840066]
[1770126915567,0.907,2311.9,2311.5,0.92481248]
[1770126915866,0.907,2311.9,2311.4,1.82840066]
[1770126916035,0.907,2311.9,2311.5,0.92475525]
[1770126916236,0.907,2311.9,2311.4,1.82840066]
[1770126917462,0.90431298,2311.9,2311.4,1.82840066]
[1770126919765,1.08244107,2312.0,2311.4,1.82840066]
[1770126919973,0.907,2311.8,2311.4,1.82840066]
[1770126920265,0.0011,2311.7,2311.4,1.82840066]
[1770126920471,0.0011,2311.7,2311.5,0.92411699]
[1770126920663,0.0011,2311.7,2311.4,1.82840066]
[1770126920857,0.0011,2311.7,2311.5,1.53932622]
[1770126921171,0.0011,2311.7,2311.5,0.6155937]
[1770126921774,0.0011,2311.7,2311.4,1.82840066]
[1770126921947,0.0011,2311.7,2311.5,0.92392738]
[1770126922141,0.0011,2311.7,2311.4,1.82840066]
[1770126922343,0.0011,2311.7,2311.5,0.92391085]
[1770126922566,0.0011,2311.7,2311.4,1.82840066]
[1770126922750,0.0011,2311.7,2311.5,2.62085846]
[1770126923075,0.0011,2311.7,2311.5,1.69712428]
[1770126923874,0.0011,2311.9,2311.5,1.69712428]
[1770126924377,0.0011,2311.9,2311.5,1.08153058]
[1770126924675,0.0011,2311.9,2311.5,1.08154744]
[1770126925863,0.0011,2311.9,2311.3,0.001]
[1770126926169,0.0011,2311.9,2311.4,0.92420521]
[1770126926378,0.0011,2311.9,2311.3,0.001]
[1770126926579,0.0011,2311.9,2311.4,0.9243881]
[1770126926768,0.0011,2311.9,2311.3,1.77724116]
[1770126926970,0.0011,2311.9,2311.4,0.92438829]
[1770126927274,0.0011,2311.9,2311.3,1.77724116]
[1770126927275,0.0011,2311.9,2311.5,0.92438829]
[1770126927479,0.0011,2311.9,2311.3,12.99582766]
[1770126927660,0.0011,2311.9,2311.4,2.44575986]
[1770126927859,0.0011,2311.9,2311.5,0.92458686]
[1770126928158,0.0011,2311.9,2311.5,1.08154877]
[1770126929679,0.0011,2311.9,2311.6,0.92497636]
[1770126929893,0.0011,2311.9,2311.5,1.08154877]
[1770126930082,0.0011,2311.9,2311.6,0.92498123]
[1770126930281,0.0011,2311.9,2311.3,1.77724116]
[1770126930451,0.0011,2311.9,2311.4,2.0067344]
[1770126930645,0.0011,2311.9,2311.5,0.92514476]
[1770126930972,0.0011,2311.9,2311.5,2.00668247]
[1770126931171,0.0011,2311.9,2311.6,0.92514476]
[1770126931579,0.0011,2311.9,2311.5,1.08153771]
[1770126931988,0.0011,2311.9,2311.4,4.32637725]
[1770126932190,0.9081,2312.0,2311.5,12.95080699]
[1770126932191,0.0011,2312.0,2311.5,12.95080699]
[1770126932390,0.9081,2312.2,2311.5,12.95080699]
[1770126932581,0.0011,2312.2,2311.6,13.30123343]
[1770126932779,1.08091863,2312.9,2311.9,12.37561257]
[1770126932982,0.907,2312.7,2312.0,13.30123343]
[1770126933190,0.907,2312.7,2312.1,12.54870984]
[1770126933561,14.24784228,2313.1,2312.1,13.70573591]
[1770126933763,0.0011,2313.2,2312.7,1.15702607]
[1770126934097,0.0011,2313.8,2313.0,12.37561257]
[1770126934297,12.65752538,2313.8,2312.8,2.23794577]
[1770126934476,1.08157912,2313.8,2312.9,1.93231175]
[1770126934675,1.08157912,2313.8,2312.9,13.15089825]
[1770126934891,12.65752538,2313.8,2312.9,1.93231175]
[1770126935083,12.65752538,2313.8,2312.8,1.08092908]
[1770126935489,11.57594626,2313.4,2312.3,2.23817201]
[1770126935794,0.0011,2312.9,2312.3,1.08116468]
[1770126935969,0.907,2312.8,2312.4,1.62172945]
[1770126936165,13.5638904,2312.8,2312.1,2.48714941]
[1770126936389,1.98794414,2312.8,2312.1,1.08124604]
[1770126936695,1.98794414,2312.8,2312.0,1.08128003]
[1770126936696,1.98794245,2312.8,2312.0,1.08128003]
[1770126936887,1.98794245,2312.8,2311.8,16.7011374]
[1770126937083,0.907,2312.8,2312.3,1.08116925]
[1770126937775,0.907,2312.8,2312.2,1.08118636]
[1770126937970,0.907,2312.8,2312.3,0.54062085]
[1770126938370,1.98794761,2312.8,2312.3,0.54062085]
[1770126938569,1.98794761,2312.8,2312.1,1.08123508]
[1770126938779,1.08094761,2312.8,2312.1,1.08123508]
[1770126939105,0.907,2312.7,2312.1,1.08123508]
[1770126939408,0.907,2312.7,2312.0,1.08127277]
[1770126939605,0.907,2312.7,2312.2,1.08121682]
[1770126939906,0.907,2312.7,2312.3,1.08115393]
[1770126940113,1.98899822,2312.9,2312.3,1.08115393]
[1770126940314,13.56494448,2312.9,2312.0,1.08128657]
[1770126941078,13.56494448,2312.9,2312.0,1.11386069]
[1770126941289,13.56494448,2312.9,2312.0,1.08128657]
[1770126941491,13.56494448,2312.9,2312.1,0.54391491]
[1770126942207,1.98794714,2312.8,2312.2,1.08122134]
[1770126943626,13.5638934,2312.8,2312.2,1.08122134]
[1770126944323,13.5638934,2312.8,2312.1,1.62515055]
[1770126946921,13.5638934,2312.8,2312.1,1.60155055]
[1770126947218,11.57594626,2312.7,2311.8,2.238413]
[1770126947394,11.57594626,2312.7,2311.8,1.08138693]
[1770126947592,11.57594626,2312.7,2311.9,1.08136155]
[1770126947801,11.57594626,2312.7,2312.0,1.08131256]
[1770126948093,11.57594626,2312.7,2312.0,1.08231256]
[1770126948510,11.57594626,2312.7,2312.0,0.001]
[1770126949227,1.08102572,2312.7,2312.0,0.001]
[1770126950124,12.65697198,2312.7,2312.0,0.001]
[1770126952732,12.65697198,2312.7,2312.0,0.001]
[1770126955832,12.65697198,2312.7,2312.0,11.18572329]
[1770126955833,1.08102572,2312.7,2312.0,11.18572329]
[1770126956005,1.08202106,2312.9,2312.0,11.18572329]
[1770126956212,0.906,2312.8,2312.2,1.08122134]
[1770126956426,0.0011,2312.9,2312.2,1.08122134]
[1770126956743,0.906,2312.8,2312.2,1.08122134]
[1770126956946,0.906,2312.8,2312.2,12.26594463]
[1770126957144,0.906,2312.7,2312.2,12.26594463]
[1770126957348,0.906,2312.7,2312.3,1.7709483]
[1770126957646,0.906,2312.7,2312.3,1.78133458]
[1770126957815,0.906,2312.7,2312.3,1.7709483]
[1770126958228,0.906,2312.7,2312.2,1.08122134]
[1770126959034,0.906,2312.7,2312.1,2.19980398]
[1770126959239,1.98699829,2312.7,2312.1,2.19980398]
[1770126959409,0.906,2312.7,2312.1,2.19980398]
[1770126959806,1.9869879,2312.7,2312.1,2.19980398]
[1770126960045,1.9869879,2312.7,2312.2,0.76830226]
[1770126960343,0.906,2312.7,2312.2,0.76830226]
[1770126960550,0.906,2312.7,2312.2,1.8495218]
[1770126960712,0.0011,2312.9,2312.2,13.0443438]
[1770126960918,0.0011,2312.9,2312.2,13.03424509]
[1770126961118,0.9071,2312.9,2312.3,13.03635729]
[1770126961341,0.0011,2313.2,2312.4,12.34174936]
[1770126961535,0.0011,2313.2,2312.5,1.15702607]
[1770126961716,0.0011,2313.2,2312.5,12.34174936]
[1770126962124,12.7582488,2313.2,2312.4,1.15702607]
[1770126962441,0.0011,2313.2,2312.5,1.08108108]
[1770126962626,1.08185817,2313.2,2312.5,1.08108108]
[1770126963649,12.7582486,2313.2,2312.5,1.08108108]
[1770126963856,12.75824472,2313.2,2312.5,1.08108108]
[1770126964161,1.08185516,2313.2,2312.5,2.23810715]
[1770126964363,0.0011,2313.2,2312.6,1.91314527]
[1770126965857,0.0011,2313.2,2312.6,0.83212694]
[1770126966040,0.0011,2313.2,2312.6,1.91316108]
[1770126966440,0.0011,2313.2,2312.6,0.83212694]
[1770126966654,0.0011,2313.2,2312.6,1.91314963]
[1770126967042,0.0011,2313.2,2312.6,0.83212694]
[1770126967763,0.0011,2313.2,2312.7,1.38800755]
[1770126967965,0.0011,2313.2,2312.7,0.30701996]
[1770126969463,0.0011,2313.2,2312.6,1.08102574]
[1770126970535,0.0011,2313.2,2312.7,1.08095436]
[1770126972535,0.0011,2313.2,2312.6,1.08100135]
[1770126972742,0.9071,2313.2,2312.6,2.23802742]